fUSD/lending_fUSD_20250128
["ID","MTS","AMOUNT","RATE_DAILY","PERIOD"]
[350689804,1738062643760,-500.0,0.00018798,2]
[350689805,1738062643769,-806.19,0.00018798,2]
[350689806,1738062643778,-419.22634613,0.00018798,2]
[350689807,1738062643787,-500.0,0.00018798,2]
[350689808,1738062643796,-500.0,0.00018798,2]
[350689809,1738062643806,-500.0,0.00018798,2]
[350689810,1738062643815,-500.0,0.00018798,2]
[350689811,1738062643824,-500.0,0.00018798,2]
[350689812,1738062643833,-601.27,0.00018798,2]
[350689813,1738062643842,-500.0,0.00018798,2]
[350689814,1738062643851,-500.0,0.00018798,2]
[350689815,1738062643860,-500.0,0.00018798,2]
[350689816,1738062643870,-630.26995998,0.00018798,2]
[350689817,1738062643879,-500.0,0.00018798,2]
[350689818,1738062643889,-621.77082675,0.00018798,2]
[350689820,1738062643898,-514.03722333,0.00018798,2]
[350689822,1738062643906,-405.65025118,0.00018798,2]
[350689823,1738062643915,-500.0,0.00018798,2]
[350689824,1738062643924,-500.0,0.00018798,2]
[350689825,1738062643933,-500.0,0.00018798,2]
[350689826,1738062643942,-620.10808636,0.00018798,2]
[350689827,1738062643951,-500.0,0.00018798,2]
[350689828,1738062643959,-500.0,0.00018798,2]
[350689829,1738062643969,-500.0,0.00018798,2]
[350689830,1738062643978,-500.0,0.00018798,2]
[350689831,1738062643987,-790.0,0.00018798,2]
[350689832,1738062643997,-500.0,0.00018798,2]
[350689833,1738062644006,-500.0,0.00018798,2]
[350689834,1738062644015,-500.0,0.00018798,2]
[350689835,1738062644025,-535.44,0.00018798,2]
[350689836,1738062644034,-500.0,0.00018798,2]
[350689837,1738062644043,-616.58,0.00018798,2]
[350689838,1738062644052,-500.0,0.00018798,2]
[350689839,1738062644062,-504.1656279,0.00018798,2]
[350689840,1738062644071,-500.0,0.00018798,2]
[350689841,1738062644079,-503.83964842,0.00018798,2]
[350689842,1738062644089,-500.0,0.00018798,2]
[350689843,1738062644097,-640.93,0.00018798,2]
[350689844,1738062644107,-500.0,0.00018798,2]
[350689845,1738062644116,-559.51985721,0.00018798,2]
[350689846,1738062644126,-500.0,0.00018798,2]
[350689847,1738062644134,-500.0,0.00018798,2]
[350689848,1738062644143,-500.0,0.00018798,2]
[350689849,1738062644152,-500.0,0.00018798,2]
[350689850,1738062644161,-500.0,0.00018798,2]
[350689851,1738062644170,-501.18727678,0.00018798,2]
[350689852,1738062644179,-500.0,0.00018798,2]
[350689853,1738062644188,-556.43508935,0.00018798,2]
[350689854,1738062644196,-474.0016549,0.00018798,2]
[350689855,1738062644206,-500.0,0.00018798,2]
[350689856,1738062644215,-500.0,0.00018798,2]
[350689857,1738062644224,-500.0,0.00018798,2]
[350689858,1738062644233,-500.0,0.00018798,2]
[350689859,1738062644242,-818.19,0.00018798,2]
[350689860,1738062644251,-500.0,0.00018798,2]
[350689861,1738062644260,-273.46748276,0.00018798,2]
[350689862,1738062644269,-500.0,0.00018798,2]
[350689863,1738062644278,-513.0916789,0.00018798,2]
[350689864,1738062644287,-503.55673116,0.00018798,2]
[350689865,1738062644295,-500.0,0.00018798,2]
[350689866,1738062644304,-500.0,0.00018798,2]
[350689867,1738062644313,-500.0,0.00018798,2]
[350689868,1738062644322,-500.0,0.00018798,2]
[350689869,1738062644331,-301.43466052,0.00018798,2]
[350689870,1738062644340,-500.0,0.00018798,2]
[350689871,1738062644350,-500.0,0.00018798,2]
[350689872,1738062644362,-567.63189087,0.00018798,2]
[350689873,1738062644371,-508.18460541,0.00018798,2]
[350689874,1738062644380,-500.0,0.00018798,2]
[350689875,1738062644389,-500.0,0.00018798,2]
[350689876,1738062644400,-500.0,0.00018798,2]
[350689877,1738062644409,-504.07610593,0.00018798,2]
[350689878,1738062644418,-500.0,0.00018798,2]
[350689879,1738062644426,-500.0,0.00018798,2]
[350689880,1738062644437,-515.65792414,0.00018798,2]
[350689881,1738062644446,-517.58,0.00018798,2]
[350689882,1738062644455,-500.0,0.00018798,2]
[350689883,1738062644464,-500.0,0.00018798,2]
[350689884,1738062644474,-602.89,0.00018798,2]
[350689885,1738062644482,-565.03,0.00018798,2]
[350689886,1738062644491,-500.0,0.00018798,2]
[350689887,1738062644501,-500.0,0.00018798,2]
[350689888,1738062644510,-500.0,0.00018798,2]
[350689889,1738062644519,-507.90846795,0.00018798,2]
[350689890,1738062644528,-500.0,0.00018798,2]
[350689891,1738062644538,-502.86956803,0.00018798,2]
[350689892,1738062644547,-503.13514765,0.00018798,2]
[350689893,1738062644556,-650.62,0.00018798,2]
[350689894,1738062644565,-500.0,0.00018798,2]
[350689895,1738062644574,-543.35564483,0.00018798,2]
[350689896,1738062644583,-500.0,0.00018798,2]
[350689897,1738062644591,-515.36,0.00018798,2]
[350689898,1738062644600,-324.7782409,0.00018798,2]
[350689899,1738062644609,-933.59,0.00018798,2]
[350689900,1738062644618,-500.0,0.00018798,2]
[350689901,1738062644627,-812.61,0.00018798,2]
[350689902,1738062644636,-500.0,0.00018798,2]
[350689903,1738062644645,-500.0,0.00018798,2]
[350689904,1738062644654,-500.0,0.00018798,2]
[350689905,1738062644663,-500.0,0.00018798,2]
[350689906,1738062644672,-500.0,0.00018798,2]
[350689907,1738062644682,-568.04,0.00018798,2]
[350689908,1738062644691,-500.0,0.00018798,2]
[350689909,1738062644699,-500.0,0.00018798,2]
[350689910,1738062644708,-500.0,0.00018798,2]
[350689911,1738062644717,-500.0,0.00018798,2]
[350689912,1738062644726,-500.0,0.00018798,2]
[350689913,1738062644737,-764.69,0.00018798,2]
[350689914,1738062644745,-500.0,0.00018798,2]
[350689915,1738062644754,-500.0,0.00018798,2]
[350689916,1738062644763,-500.0,0.00018798,2]
[350689917,1738062644772,-500.0,0.00018798,2]
[350689918,1738062644782,-500.0,0.00018798,2]
[350689919,1738062644791,-500.0,0.00018798,2]
[350689920,1738062644800,-500.0,0.00018798,2]
[350689921,1738062644809,-500.0,0.00018798,2]
[350689922,1738062644818,-500.0,0.00018798,2]
[350689923,1738062644827,-500.0,0.00018798,2]
[350689924,1738062644836,-500.0,0.00018798,2]
[350689925,1738062644845,-500.0,0.00018798,2]
[350689926,1738062644854,-537.2,0.00018798,2]
[350689927,1738062644863,-500.0,0.00018798,2]
[350689928,1738062644873,-500.0,0.00018798,2]
[350689929,1738062644882,-500.0,0.00018798,2]
[350689930,1738062644891,-500.0,0.00018798,2]
[350689931,1738062644901,-515.03021683,0.00018798,2]
[350689932,1738062644910,-500.0,0.00018798,2]
[350689933,1738062644920,-500.0,0.00018798,2]
[350689934,1738062644929,-500.0,0.00018798,2]
[350689935,1738062644938,-580.99,0.00018798,2]
[350689936,1738062644947,-500.0,0.00018798,2]
[350689937,1738062644956,-500.0,0.00018798,2]
[350689938,1738062644965,-500.0,0.00018798,2]
[350689939,1738062644974,-500.0,0.00018798,2]
[350689940,1738062644983,-500.0,0.00018798,2]
[350689941,1738062644993,-721.17,0.00018798,2]
[350689942,1738062645002,-500.0,0.00018798,2]
[350689943,1738062645011,-500.0,0.00018798,2]
[350689944,1738062645021,-500.0,0.00018798,2]
[350689945,1738062645030,-500.0,0.00018798,2]
[350689946,1738062645039,-550.19,0.00018798,2]
[350689947,1738062645048,-500.0,0.00018798,2]
[350689948,1738062645057,-575.25,0.00018798,2]
[350689949,1738062645066,-500.0,0.00018798,2]
[350689950,1738062645074,-527.92,0.00018798,2]
[350689951,1738062645083,-537.26,0.00018798,2]
[350689952,1738062645092,-1350.66,0.00018798,2]
[350689953,1738062645101,-500.0,0.00018798,2]
[350689954,1738062645110,-500.0,0.00018798,2]
[350689955,1738062645120,-500.0,0.00018798,2]
[350689956,1738062645129,-790.85,0.00018798,2]
[350689957,1738062645138,-500.0,0.00018798,2]
[350689958,1738062645147,-500.0,0.00018798,2]
[350689959,1738062645156,-500.0,0.00018798,2]
[350689960,1738062645165,-500.0,0.00018798,2]
[350689961,1738062645174,-500.0,0.00018798,2]
[350689962,1738062645184,-500.0,0.00018798,2]
[350689963,1738062645193,-571.58924762,0.00018798,2]
[350689964,1738062645202,-500.0,0.00018798,2]
[350689965,1738062645211,-500.0,0.00018798,2]
[350689966,1738062645220,-500.0,0.00018798,2]
[350689967,1738062645229,-500.0,0.00018798,2]
[350689968,1738062645239,-889.23,0.00018798,2]
[350689969,1738062645248,-500.0,0.00018798,2]
[350689970,1738062645258,-500.0,0.00018798,2]
[350689971,1738062645266,-500.0,0.00018798,2]
[350689972,1738062645275,-500.0,0.00018798,2]
[350689973,1738062645284,-500.0,0.00018798,2]
[350689974,1738062645294,-500.0,0.00018798,2]
[350689975,1738062645303,-500.0,0.00018798,2]
[350689976,1738062645312,-500.0,0.00018798,2]
[350689977,1738062645321,-500.0,0.00018798,2]
[350689978,1738062645330,-500.0,0.00018798,2]
[350689979,1738062645339,-500.0,0.00018798,2]
[350689980,1738062645353,-500.0,0.00018798,2]
[350689981,1738062645364,-505.3025796,0.00018798,2]
[350689982,1738062645374,-566.61762908,0.00018798,2]
[350689983,1738062645384,-500.0,0.00018798,2]
[350689984,1738062645394,-500.0,0.00018798,2]
[350689985,1738062645404,-500.0,0.00018798,2]
[350689986,1738062645413,-500.0,0.00018798,2]
[350689987,1738062645423,-500.0,0.00018798,2]
[350689988,1738062645433,-500.0,0.00018798,2]
[350689989,1738062645443,-500.0,0.00018798,2]
[350689990,1738062645452,-500.0,0.00018798,2]
[350689991,1738062645461,-500.0,0.00018798,2]
[350689992,1738062645470,-500.0,0.00018798,2]
[350689993,1738062645480,-500.0,0.00018798,2]
[350689994,1738062645489,-500.0,0.00018798,2]
[350689995,1738062645498,-500.0,0.00018798,2]
[350689996,1738062645508,-500.0,0.00018798,2]
[350689997,1738062645517,-500.0,0.00018798,2]
[350689998,1738062645526,-500.0,0.00018798,2]
[350689999,1738062645535,-500.0,0.00018798,2]
[350690000,1738062645544,-500.0,0.00018798,2]
[350690001,1738062645553,-502.54,0.00018798,2]
[350690002,1738062645562,-500.0,0.00018798,2]
[350690003,1738062645571,-500.0,0.00018798,2]
[350690004,1738062645580,-500.0,0.00018798,2]
[350690005,1738062645589,-618.84,0.00018798,2]
[350690006,1738062645598,-500.0,0.00018798,2]
[350690007,1738062645607,-500.0,0.00018798,2]
[350690008,1738062645615,-500.0,0.00018798,2]
[350690009,1738062645626,-500.0,0.00018798,2]
[350690010,1738062645635,-500.0,0.00018798,2]
[350690011,1738062645644,-520.7,0.00018798,2]
[350690012,1738062645653,-500.0,0.00018798,2]
[350690013,1738062645662,-500.0,0.00018798,2]
[350690014,1738062645671,-1164.44,0.00018798,2]
[350690015,1738062645680,-500.0,0.00018798,2]
[350690016,1738062645689,-500.0,0.00018798,2]
[350690017,1738062645699,-500.0,0.00018798,2]
[350690018,1738062645707,-1013.47,0.00018798,2]
[350690019,1738062645716,-971.02,0.00018798,2]
[350690020,1738062645726,-500.0,0.00018798,2]
[350690021,1738062645735,-1617.07,0.00018798,2]
[350690022,1738062645744,-500.0,0.00018798,2]
[350690023,1738062645754,-500.0,0.00018798,2]
[350690024,1738062645763,-500.0,0.00018798,2]
[350690025,1738062645772,-500.0,0.00018798,2]
[350690026,1738062645781,-500.0,0.00018798,2]
[350690027,1738062645790,-500.0,0.00018798,2]
[350690028,1738062645800,-500.0,0.00018798,2]
[350690029,1738062645811,-981.59,0.00018798,2]
[350690030,1738062645821,-500.0,0.00018798,2]
[350690031,1738062645830,-500.0,0.00018798,2]
[350690032,1738062645838,-507.12,0.00018798,2]
[350690033,1738062645847,-657.13,0.00018798,2]
[350690034,1738062645856,-500.0,0.00018798,2]
[350690035,1738062645865,-500.0,0.00018798,2]
[350690036,1738062645875,-500.0,0.00018798,2]
[350690037,1738062645884,-958.26,0.00018798,2]
[350690038,1738062645893,-503.57443901,0.00018798,2]
[350690039,1738062645903,-500.0,0.00018798,2]
[350690040,1738062645912,-542.64,0.00018798,2]
[350690042,1738062645921,-500.0,0.00018798,2]
[350690043,1738062645930,-716.23,0.00018798,2]
[350690045,1738062645941,-796.45,0.00018798,2]
[350690047,1738062645951,-500.0,0.00018798,2]
[350690049,1738062645960,-500.0,0.00018798,2]
[350690051,1738062645970,-1419.19,0.00018798,2]
[350690054,1738062645980,-500.0,0.00018798,2]
[350690055,1738062645989,-500.0,0.00018798,2]
[350690058,1738062645998,-500.0,0.00018798,2]
[350690060,1738062646008,-549.72,0.00018798,2]
[350690061,1738062646017,-668.5,0.00018798,2]
[350690063,1738062646026,-1054.54,0.00018798,2]
[350690065,1738062646035,-500.0,0.00018798,2]
[350690067,1738062646046,-500.0,0.00018798,2]
[350690069,1738062646055,-500.0,0.00018798,2]
[350690071,1738062646065,-612.33,0.00018798,2]
[350690073,1738062646074,-1191.17,0.00018798,2]
[350690075,1738062646083,-616.84,0.00018798,2]
[350690077,1738062646092,-1574.0515126,0.0001885,2]
[350690079,1738062646102,-500.0,0.00018895,2]
[350690081,1738062646110,-500.0,0.00018895,2]
[350690083,1738062646120,-603.98,0.00018895,2]
[350690085,1738062646129,-500.0,0.00018895,2]
[350690087,1738062646138,-500.0,0.00018895,2]
[350690089,1738062646147,-500.0,0.00018895,2]
[350690091,1738062646157,-500.0,0.00018895,2]
[350690093,1738062646165,-500.0,0.00018895,2]
[350690095,1738062646174,-1000.0,0.00018904,9]
[350690097,1738062646183,-500.0,0.00018993,2]
[350690099,1738062646192,-1130.4,0.00018993,2]
[350690101,1738062646200,-500.0,0.00018993,2]
[350690103,1738062646209,-1492.49,0.00018993,2]
[350690105,1738062646218,-500.0,0.00018993,2]
[350690107,1738062646227,-1165.43,0.00018993,2]
[350690109,1738062646236,-1259.62,0.00018993,2]
[350690111,1738062646245,-500.0,0.00018993,2]
[350690113,1738062646254,-1085.9,0.00018993,2]
[350690115,1738062646264,-921.96,0.00018993,2]
[350690117,1738062646274,-500.0,0.00018993,2]
[350690119,1738062646283,-166.83,0.00018994,2]
[350690121,1738062646292,-695.76,0.00018994,2]
[350690122,1738062646300,-500.0,0.00018994,2]
[350690123,1738062646309,-500.0,0.00018994,2]
[350690124,1738062646318,-500.0,0.00018994,2]
[350690125,1738062646327,-500.0,0.00018994,2]
[350690126,1738062646336,-500.0,0.00018994,2]
[350690127,1738062646345,-500.0,0.00018994,2]
[350690128,1738062646357,-602.29,0.00018994,2]
[350690129,1738062646366,-500.0,0.00018994,2]
[350690130,1738062646376,-500.0,0.00018994,2]
[350690131,1738062646386,-219.04986782,0.00018994,2]
[350690132,1738062646398,-500.0,0.00018994,2]
[350690133,1738062646407,-500.0,0.00018994,2]
[350690134,1738062646416,-500.0,0.00018994,2]
[350690135,1738062646425,-500.0,0.00018994,2]
[350690136,1738062646436,-500.0,0.00018994,2]
[350690137,1738062646445,-500.0,0.00018994,2]
[350690138,1738062646454,-500.0,0.00018994,2]
[350690139,1738062646463,-500.0,0.00018994,2]
[350690140,1738062646472,-500.0,0.00018994,2]
[350690141,1738062646481,-500.0,0.00018994,2]
[350690142,1738062646489,-551.07,0.00018994,2]
[350690143,1738062646498,-507.4,0.00018994,2]
[350690144,1738062646507,-500.0,0.00018994,2]
[350690145,1738062646516,-500.0,0.00018994,2]
[350690146,1738062646526,-840.7,0.00018994,2]
[350690147,1738062646535,-500.0,0.00018994,2]
[350690148,1738062646544,-500.0,0.00018994,2]
[350690149,1738062646553,-500.0,0.00018994,2]
[350690150,1738062646562,-500.0,0.00018994,2]
[350690151,1738062646571,-500.0,0.00018994,2]
[350690152,1738062646580,-500.0,0.00018994,2]
[350690153,1738062646589,-500.0,0.00018994,2]
[350690154,1738062646597,-518.09,0.00018994,2]
[350690155,1738062646606,-500.0,0.00018994,2]
[350690156,1738062646615,-500.0,0.00018994,2]
[350690157,1738062646624,-500.0,0.00018994,2]
[350690158,1738062646633,-691.56,0.00018994,2]
[350690159,1738062646642,-500.0,0.00018994,2]
[350690160,1738062646651,-500.0,0.00018994,2]
[350690161,1738062646660,-500.0,0.00018994,2]
[350690162,1738062646669,-500.0,0.00018994,2]
[350690163,1738062646678,-500.0,0.00018994,2]
[350690164,1738062646688,-500.0,0.00018994,2]
[350690165,1738062646697,-219.54014812,0.00018994,2]
[350690166,1738062646707,-500.0,0.00018994,2]
[350690167,1738062646716,-500.0,0.00018994,2]
[350690168,1738062646725,-500.0,0.00018994,2]
[350690169,1738062646735,-500.0,0.00018994,2]
[350690170,1738062646744,-275.70982429,0.00018994,2]
[350690171,1738062646753,-500.98,0.00018994,2]
[350690172,1738062646762,-500.0,0.00018994,2]
[350690173,1738062646771,-500.0,0.00018994,2]
[350690174,1738062646780,-500.0,0.00018994,2]
[350690175,1738062646789,-502.59259504,0.00018994,2]
[350690176,1738062646798,-500.0,0.00018994,2]
[350690177,1738062646806,-500.0,0.00018994,2]
[350690178,1738062646815,-737.09,0.00018994,2]
[350690179,1738062646824,-500.0,0.00018994,2]
[350690180,1738062646833,-1063.85,0.00018994,2]
[350690181,1738062646841,-500.0,0.00018994,2]
[350690182,1738062646850,-500.0,0.00018994,2]
[350690183,1738062646859,-500.0,0.00018994,2]
[350690184,1738062646868,-500.0,0.00018994,2]
[350690185,1738062646877,-820.06,0.00018994,2]
[350690186,1738062646887,-500.0,0.00018994,2]
[350690187,1738062646895,-500.0,0.00018994,2]
[350690188,1738062646904,-500.0,0.00018994,2]
[350690189,1738062646913,-508.90265177,0.00018994,2]
[350690190,1738062646922,-500.0,0.00018994,2]
[350690191,1738062646931,-506.78993561,0.00018994,2]
[350690192,1738062646940,-1179.65,0.00018994,2]
[350690193,1738062646948,-500.0,0.00018994,2]
[350690194,1738062646960,-500.0,0.00018994,2]
[350690195,1738062646969,-500.0,0.00018994,2]
[350690196,1738062646978,-500.0,0.00018994,2]
[350690197,1738062647146,-646.29,0.00018994,2]
[350690198,1738062647155,-500.0,0.00018994,2]
[350690199,1738062647164,-500.0,0.00018994,2]
[350690200,1738062647173,-500.0,0.00018994,2]
[350690201,1738062647183,-500.0,0.00018994,2]
[350690202,1738062647191,-500.0,0.00018994,2]
[350690203,1738062647200,-500.0,0.00018994,2]
[350690204,1738062647210,-1411.75,0.00018994,2]
[350690205,1738062647219,-500.0,0.00018994,2]
[350690206,1738062647229,-528.37,0.00018994,2]
[350690207,1738062647238,-438.42921504,0.00018994,2]
[350690208,1738062647248,-631.38,0.00018994,2]
[350690209,1738062647257,-500.0,0.00018994,2]
[350690210,1738062647266,-500.0,0.00018994,2]
[350690211,1738062647275,-500.61220485,0.00018994,2]
[350690212,1738062647284,-500.0,0.00018994,2]
[350690213,1738062647293,-500.0,0.00018994,2]
[350690214,1738062647302,-1413.74,0.00018994,2]
[350690215,1738062647311,-500.0,0.00018994,2]
[350690216,1738062647320,-502.75712898,0.00018994,2]
[350690217,1738062647330,-500.0,0.00018994,2]
[350690218,1738062647339,-500.0,0.00018994,2]
[350690219,1738062647348,-502.26781951,0.00018994,2]
[350690220,1738062647360,-500.0,0.00018994,2]
[350690221,1738062647371,-500.0,0.00018994,2]
[350690222,1738062647381,-500.0,0.00018994,2]
[350690223,1738062647391,-500.0,0.00018994,2]
[350690224,1738062647400,-617.57918901,0.00018994,2]
[350690225,1738062647409,-500.0,0.00018994,2]
[350690226,1738062647418,-500.0,0.00018994,2]
[350690227,1738062647428,-661.36,0.00018994,2]
[350690228,1738062647439,-512.68956744,0.00018994,2]
[350690229,1738062647448,-500.0,0.00018994,2]
[350690230,1738062647458,-500.0,0.00018994,2]
[350690231,1738062647467,-500.0,0.00018994,2]
[350690232,1738062647476,-503.52462051,0.00018994,2]
[350690233,1738062647485,-563.99,0.00018994,2]
[350690234,1738062647495,-500.0,0.00018994,2]
[350690235,1738062647504,-500.0,0.00018994,2]
[350690236,1738062647513,-500.0,0.00018994,2]
[350690237,1738062647522,-501.47345857,0.00018994,2]
[350690238,1738062647531,-500.0,0.00018994,2]
[350690239,1738062647541,-632.86,0.00018994,2]
[350690240,1738062647550,-500.0,0.00018994,2]
[350690241,1738062647559,-500.0,0.00018994,2]
[350690242,1738062647568,-500.0,0.00018994,2]
[350690243,1738062647577,-1270.9,0.00018994,2]
[350690244,1738062647585,-500.0,0.00018994,2]
[350690245,1738062647594,-500.91412945,0.00018994,2]
[350690246,1738062647603,-516.85,0.00018994,2]
[350690247,1738062647612,-500.0,0.00018994,2]
[350690248,1738062647622,-500.0,0.00018994,2]
[350690249,1738062647631,-500.0,0.00018994,2]
[350690250,1738062647640,-500.40024271,0.00018994,2]
[350690251,1738062647649,-500.0,0.00018994,2]
[350690252,1738062647659,-505.30339742,0.00018994,2]
[350690253,1738062647669,-500.0,0.00018994,2]
[350690254,1738062647679,-818.18,0.00018994,2]
[350690255,1738062647688,-856.76,0.00018994,2]
[350690256,1738062647697,-500.0,0.00018994,2]
[350690257,1738062647706,-500.0,0.00018994,2]
[350690258,1738062647715,-500.0,0.00018994,2]
[350690259,1738062647724,-500.0,0.00018994,2]
[350690260,1738062647733,-501.84584603,0.00018994,2]
[350690261,1738062647745,-500.0,0.00018994,2]
[350690262,1738062647753,-500.0,0.00018994,2]
[350690263,1738062647762,-500.0,0.00018994,2]
[350690264,1738062647771,-503.36217855,0.00018994,2]
[350690265,1738062647780,-500.0,0.00018994,2]
[350690266,1738062647789,-503.15408421,0.00018994,2]
[350690267,1738062647798,-500.0,0.00018994,2]
[350690268,1738062647807,-500.0,0.00018994,2]
[350690269,1738062647816,-497.49498699,0.00018994,2]
[350690270,1738062647825,-500.0,0.00018994,2]
[350690271,1738062647834,-500.0,0.00018994,2]
[350690272,1738062647844,-500.0,0.00018994,2]
[350690273,1738062647853,-500.0,0.00018994,2]
[350690274,1738062647862,-500.0,0.00018994,2]
[350690275,1738062647871,-500.0,0.00018994,2]
[350690276,1738062647881,-773.26,0.00018994,2]
[350690277,1738062647890,-500.0,0.00018994,2]
[350690278,1738062647899,-500.0,0.00018994,2]
[350690279,1738062647909,-500.0,0.00018994,2]
[350690280,1738062647918,-500.0,0.00018994,2]
[350690281,1738062647927,-294.91790794,0.00018994,2]
[350690282,1738062647936,-500.0,0.00018994,2]
[350690283,1738062647946,-500.0,0.00018994,2]
[350690284,1738062647955,-500.0,0.00018994,2]
[350690285,1738062647964,-500.0,0.00018994,2]
[350690286,1738062647974,-500.0,0.00018994,2]
[350690287,1738062647983,-638.62,0.00018994,2]
[350690288,1738062647992,-982.92,0.00018994,2]
[350690289,1738062648001,-275.65304738,0.00018994,2]
[350690290,1738062648011,-500.0,0.00018994,2]
[350690291,1738062648020,-434.92799968,0.00018994,2]
[350690292,1738062648029,-500.0,0.00018994,2]
[350690293,1738062648039,-500.0,0.00018994,2]
[350690294,1738062648048,-500.0,0.00018994,2]
[350690295,1738062648057,-500.0,0.00018994,2]
[350690296,1738062648066,-500.0,0.00018994,2]
[350690297,1738062648075,-479.82242403,0.00018994,2]
[350690298,1738062648084,-714.89,0.00018994,2]
[350690299,1738062648093,-500.0,0.00018994,2]
[350690300,1738062648104,-752.12,0.00018994,2]
[350690301,1738062648112,-500.0,0.00018994,2]
[350690302,1738062648122,-500.0,0.00018994,2]
[350690303,1738062648131,-500.0,0.00018994,2]
[350690304,1738062648140,-1149.1,0.00018994,2]
[350690305,1738062648150,-500.0,0.00018994,2]
[350690306,1738062648159,-500.0,0.00018994,2]
[350690307,1738062648169,-500.0,0.00018994,2]
[350690308,1738062648178,-927.89,0.00018994,2]
[350690309,1738062648188,-603.84,0.00018994,2]
[350690310,1738062648198,-500.0,0.00018994,2]
[350690311,1738062648208,-500.0,0.00018994,2]
[350690312,1738062648217,-586.91,0.00018994,2]
[350690313,1738062648227,-500.0,0.00018994,2]
[350690314,1738062648236,-568.56,0.00018994,2]
[350690315,1738062648246,-500.0,0.00018994,2]
[350690316,1738062648257,-500.0,0.00018994,2]
[350690317,1738062648266,-500.0,0.00018994,2]
[350690318,1738062648276,-500.0,0.00018994,2]
[350690319,1738062648288,-500.0,0.00018994,2]
[350690320,1738062648297,-502.53259105,0.00018994,2]
[350690321,1738062648306,-500.0,0.00018994,2]
[350690322,1738062648315,-500.0,0.00018994,2]
[350690323,1738062648325,-214.06223853,0.00018994,2]
[350690324,1738062648334,-500.0,0.00018994,2]
[350690325,1738062648344,-1085.42,0.00018994,2]
[350690326,1738062648355,-631.43557561,0.00018994,2]
[350690327,1738062648365,-500.0,0.00018994,2]
[350690328,1738062648376,-524.24211086,0.00018994,2]
[350690329,1738062648385,-500.0,0.00018994,2]
[350690330,1738062648395,-689.44,0.00018994,2]
[350690331,1738062648404,-500.0,0.00018994,2]
[350690332,1738062648414,-500.0,0.00018994,2]
[350690333,1738062648423,-737.75,0.00018994,2]
[350690334,1738062648435,-1266.32,0.00018994,2]
[350690335,1738062648444,-717.92,0.00018994,2]
[350690336,1738062648454,-500.0,0.00018994,2]
[350690337,1738062648464,-508.22911599,0.00018994,2]
[350690338,1738062648473,-500.0,0.00018994,2]
[350690339,1738062648482,-1155.97,0.00018994,2]
[350690340,1738062648492,-500.0,0.00018994,2]
[350690341,1738062648501,-500.0,0.00018994,2]
[350690342,1738062648511,-500.0,0.00018994,2]
[350690343,1738062648520,-784.78,0.00018994,2]
[350690344,1738062648529,-500.0,0.00018994,2]
[350690345,1738062648538,-500.0,0.00018994,2]